{"text_format":"3","workbook":"xlsx","n_sheets":5,"sheets":["Partiye Genel Bakış","Konuk Listesi","Yiyecek ve İçecek","Diğer Anahatlar","Oturma Düzeni Kılavuzu"],"not_rendered":{"defined_names":9},"read":"whole","date_system":"1900"}

{"sheet":"Partiye Genel Bakış","index":0,"n_rows":21,"n_cols":8,"rows_kept":21,"merged":[[6,3,6,4],[6,5,6,6],[9,1,9,2]]}
[]
[]
[null,"Partiye Genel Bakış"]
[]
[]
[null,"ETKİNLİK",null,"KONUK ÖZETİ",{"$nulls":3},{"$f":"\"DURUMU BELİRSİZ LCV'LER: \"&BekleyenLCV","v":"DURUMU BELİRSİZ LCV'LER: 2"}]
[null,"Anneanne'nin 75. Yaş Günü",null,"LCV GENEL BAKIŞ",null,"KONUK BAŞINA MALİYET",null,"BÜTÇE TUTARI"]
[{"$nulls":3},"Onaylanan Konuklar","Toplam Onaylanan","Yiyecek","Diğer","Toplam"]
[null,"TARİH",null,"Yetişkinler",{"$f":"SUMIF(KonukTablosu[KATILIM?],\"=Evet\",KonukTablosu[YETİŞKİNLER])","v":26},{"$f":"YemekTablosu[[#Totals],[YETİŞKİN BAŞINA MALİYET]]","v":{"v":12.690089084110037,"d":"12.69 TL"}},{"$f":"KonukBaşınaTemelMaliyet","v":{"v":18.695652173913043,"d":"18.70 TL"}},{"$f":"(KatılımÖzeti[[#This Row],[Yiyecek]]+KatılımÖzeti[[#This Row],[Diğer]])*ToplamYetişkin","v":{"v":816.0292727086002,"d":"816.03 TL"}}]
[null,"2011-06-14",null,"Çocuklar",{"$f":"SUMIF(KonukTablosu[KATILIM?],\"=Evet\",KonukTablosu[ÇOCUKLAR])","v":20},{"$f":"YemekTablosu[[#Totals],[ÇOCUK BAŞINA MALİYET]]","v":{"v":7.252884190656953,"d":"7.25 TL"}},{"$f":"KonukBaşınaTemelMaliyet","v":{"v":18.695652173913043,"d":"18.70 TL"}},{"$f":"(KatılımÖzeti[[#This Row],[Yiyecek]]+KatılımÖzeti[[#This Row],[Diğer]])*ToplamÇocuk","v":{"v":518.9707272914,"d":"518.97 TL"}}]
[{"$nulls":3},"Toplam",{"$f":"SUBTOTAL(109,KatılımÖzeti[Toplam Onaylanan])","v":46},{"$f":"\"Ort.     \"&TEXT(SUBTOTAL(101,KatılımÖzeti[Yiyecek]),\"#.##0,00 TL\")","v":"Ort.     9,97 TL"},{"$f":"\"Ort.     \"&TEXT(SUBTOTAL(101,KatılımÖzeti[Diğer]),\"#.##0,00 TL\")","v":"Ort.     18,70 TL"},{"$f":"SUBTOTAL(109,KatılımÖzeti[Toplam])","v":{"v":1335,"d":"1,335.00 TL"}}]
[null,"SAAT"]
[null,"14:00-16:00"]
[]
[null,"YER",null,"BÜTÇE ÖZETİ"]
[null,"Sibel Teyze'nin Evi",null,"ÖĞE","SAYI","BÜTÇE TUTARI","TOPLAM MALİYET","FARK"]
[{"$nulls":3},"Yiyecek ve İçecek",{"$f":"COUNTA(YemekTablosu[YİYECEK VEYA İÇECEK ÖĞESİ])","v":18},{"v":500,"d":"500.00 TL"},{"$f":"YemekTablosu[[#Totals],[TOPLAM MALİYET]]","v":{"v":475,"d":"475.00 TL"}},{"$f":"BütçeyeGenelBakış[[#This Row],[BÜTÇE TUTARI]]-BütçeyeGenelBakış[[#This Row],[TOPLAM MALİYET]]","v":{"v":25,"d":"25.00 TL"}}]
[{"$nulls":3},{"$f":"Tablo1Başlık","v":"Araç Gereç ve Malzemeler"},{"$f":"COUNTA(Tablo1Bütçe[Araç Gereç ve Malzemeler])","v":7},{"v":400,"d":"400.00 TL"},{"$f":"Tablo1Bütçe[[#Totals],[Maliyet]]","v":{"v":400,"d":"400.00 TL"}},{"$f":"BütçeyeGenelBakış[[#This Row],[BÜTÇE TUTARI]]-BütçeyeGenelBakış[[#This Row],[TOPLAM MALİYET]]","v":{"v":0,"d":"0.00 TL"}}]
[{"$nulls":3},{"$f":"Tablo2Başlık","v":"Süslemeler"},{"$f":"COUNTA(Tablo2Bütçe[Süslemeler])","v":4},{"v":150,"d":"150.00 TL"},{"$f":"Tablo2Bütçe[[#Totals],[Maliyet]]","v":{"v":175,"d":"175.00 TL"}},{"$f":"BütçeyeGenelBakış[[#This Row],[BÜTÇE TUTARI]]-BütçeyeGenelBakış[[#This Row],[TOPLAM MALİYET]]","v":{"v":-25,"d":"-25.00 TL"}}]
[{"$nulls":3},{"$f":"Tablo3Başlık","v":"Diğer"},{"$f":"COUNTA(Tablo3Bütçe[Diğer])","v":4},{"v":300,"d":"300.00 TL"},{"$f":"Tablo3Bütçe[[#Totals],[Maliyet]]","v":{"v":285,"d":"285.00 TL"}},{"$f":"BütçeyeGenelBakış[[#This Row],[BÜTÇE TUTARI]]-BütçeyeGenelBakış[[#This Row],[TOPLAM MALİYET]]","v":{"v":15,"d":"15.00 TL"}}]
[{"$nulls":3},"Toplam",{"$f":"SUBTOTAL(109,BütçeyeGenelBakış[SAYI])","v":33},{"$f":"SUBTOTAL(109,BütçeyeGenelBakış[BÜTÇE TUTARI])","v":{"v":1350,"d":"1,350.00 TL"}},{"$f":"SUBTOTAL(109,BütçeyeGenelBakış[TOPLAM MALİYET])","v":{"v":1335,"d":"1,335.00 TL"}},{"$f":"SUBTOTAL(109,BütçeyeGenelBakış[FARK])","v":{"v":15,"d":"15.00 TL"}}]

{"sheet":"Konuk Listesi","index":1,"n_rows":22,"n_cols":12,"rows_kept":22}
[]
[]
[null,"Konuk Listesi"]
[]
[]
[]
[null,"AD","ADRES","İLÇE","ŞEHİR","POSTA KODU","TEL","E-POSTA","KATILIM?","ÇOCUKLAR","YETİŞKİNLER","TOPLAM"]
[null,"Aile 1","Adres 1","İlçe 1","Şehir 1","Posta Kodu 1","Telefon 1","E-posta1","Hayır",2,2,{"$f":"SUM(KonukTablosu[[#This Row],[ÇOCUKLAR]:[YETİŞKİNLER]])","v":4}]
[null,"Aile 2","Adres 2","İlçe 2","Şehir 2","Posta Kodu 2","Telefon 2","E-posta2","Evet",1,1,{"$f":"SUM(KonukTablosu[[#This Row],[ÇOCUKLAR]:[YETİŞKİNLER]])","v":2}]
[null,"Aile 3","Adres 3","İlçe 3","Şehir 3","Posta Kodu 3","Telefon 3","E-posta3","Evet",3,3,{"$f":"SUM(KonukTablosu[[#This Row],[ÇOCUKLAR]:[YETİŞKİNLER]])","v":6}]
[null,"Aile 4","Adres 4","İlçe 4","Şehir 4","Posta Kodu 4","Telefon 4","E-posta4",null,null,2,{"$f":"SUM(KonukTablosu[[#This Row],[ÇOCUKLAR]:[YETİŞKİNLER]])","v":2}]
[null,"Aile 5","Adres 5","İlçe 5","Şehir 5","Posta Kodu 5","Telefon 5","E-posta5","Evet",4,3,{"$f":"SUM(KonukTablosu[[#This Row],[ÇOCUKLAR]:[YETİŞKİNLER]])","v":7}]
[null,"Aile 6","Adres 6","İlçe 6","Şehir 6","Posta Kodu 6","Telefon 6","E-posta6","Evet",2,2,{"$f":"SUM(KonukTablosu[[#This Row],[ÇOCUKLAR]:[YETİŞKİNLER]])","v":4}]
[null,"Aile 7","Adres 7","İlçe 7","Şehir 7","Posta Kodu 7","Telefon 7","E-posta7","Evet",1,4,{"$f":"SUM(KonukTablosu[[#This Row],[ÇOCUKLAR]:[YETİŞKİNLER]])","v":5}]
[null,"Aile 8","Adres 8","İlçe 8","Şehir 8","Posta Kodu 8","Telefon 8","E-posta8","Hayır",5,3,{"$f":"SUM(KonukTablosu[[#This Row],[ÇOCUKLAR]:[YETİŞKİNLER]])","v":8}]
[null,"Aile 9","Adres 9","İlçe 9","Şehir 9","Posta Kodu 9","Telefon 9","E-posta9","Evet",3,2,{"$f":"SUM(KonukTablosu[[#This Row],[ÇOCUKLAR]:[YETİŞKİNLER]])","v":5}]
[null,"Aile 10","Adres 10","İlçe 10","Şehir 10","Posta Kodu 10","Telefon 10","E-posta10","Evet",null,4,{"$f":"SUM(KonukTablosu[[#This Row],[ÇOCUKLAR]:[YETİŞKİNLER]])","v":4}]
[null,"Aile 11","Adres 11","İlçe 11","Şehir 11","Posta Kodu 11","Telefon 11","E-posta11","Evet",3,5,{"$f":"SUM(KonukTablosu[[#This Row],[ÇOCUKLAR]:[YETİŞKİNLER]])","v":8}]
[null,"Aile 12","Adres 12","İlçe 12","Şehir 12","Posta Kodu 12","Telefon 12","E-posta12","Hayır",2,3,{"$f":"SUM(KonukTablosu[[#This Row],[ÇOCUKLAR]:[YETİŞKİNLER]])","v":5}]
[null,"Aile 13","Adres 13","İlçe 13","Şehir 13","Posta Kodu 13","Telefon 13","E-posta13","Evet",3,2,{"$f":"SUM(KonukTablosu[[#This Row],[ÇOCUKLAR]:[YETİŞKİNLER]])","v":5}]
[null,"Aile 14","Adres 14","İlçe 14","Şehir 14","Posta Kodu 14","Telefon 14","E-posta14","Hayır",null,1,{"$f":"SUM(KonukTablosu[[#This Row],[ÇOCUKLAR]:[YETİŞKİNLER]])","v":1}]
[null,"Aile 15","Adres 15","İlçe 15","Şehir 15","Posta Kodu 15","Telefon 15","E-posta15",null,null,2,{"$f":"SUM(KonukTablosu[[#This Row],[ÇOCUKLAR]:[YETİŞKİNLER]])","v":2}]

{"sheet":"Yiyecek ve İçecek","index":2,"n_rows":25,"n_cols":10,"rows_kept":25}
[]
[]
[null,"Yiyecek ve İçecek"]
[]
[null,"Katılım toplamına bağlı toplam parçaları ve hizmet başına maliyeti otomatik olarak hesaplamak için maliyet ve tahmini hizmetleri girin"]
[null,"YİYECEK VEYA İÇECEK ÖĞESİ","TOPLAM MALİYET","ÇOCUK BAŞINA HİZMET","YETİŞKİN BAŞINA HİZMET","TOPLAM HİZMET","HİZMET BAŞINA MALİYET","ÇOCUK BAŞINA MALİYET","YETİŞKİN BAŞINA MALİYET","NOTLAR"]
[null,"Gazlı İçecekler",{"v":15,"d":"15.00 TL"},0.5,2,{"$f":"(YemekTablosu[[#This Row],[ÇOCUK BAŞINA HİZMET]]*ToplamÇocuk)+(YemekTablosu[[#This Row],[YETİŞKİN BAŞINA HİZMET]]*ToplamYetişkin)","v":62},{"$f":"IFERROR(YemekTablosu[[#This Row],[TOPLAM MALİYET]]/YemekTablosu[[#This Row],[TOPLAM HİZMET]],\"\")","v":{"v":0.24193548387096775,"d":"0.24 TL"}},{"$f":"IFERROR(YemekTablosu[[#This Row],[HİZMET BAŞINA MALİYET]]*YemekTablosu[[#This Row],[ÇOCUK BAŞINA HİZMET]],\"\")","v":{"v":0.12096774193548387,"d":"0.12 TL"}},{"$f":"IFERROR(YemekTablosu[[#This Row],[HİZMET BAŞINA MALİYET]]*YemekTablosu[[#This Row],[YETİŞKİN BAŞINA HİZMET]],\"\")","v":{"v":0.4838709677419355,"d":"0.48 TL"}},"2 litrelik şişeler"]
[null,"Kutu meyve suları",{"v":15,"d":"15.00 TL"},2,0,{"$f":"(YemekTablosu[[#This Row],[ÇOCUK BAŞINA HİZMET]]*ToplamÇocuk)+(YemekTablosu[[#This Row],[YETİŞKİN BAŞINA HİZMET]]*ToplamYetişkin)","v":40},{"$f":"IFERROR(YemekTablosu[[#This Row],[TOPLAM MALİYET]]/YemekTablosu[[#This Row],[TOPLAM HİZMET]],\"\")","v":{"v":0.375,"d":"0.38 TL"}},{"$f":"IFERROR(YemekTablosu[[#This Row],[HİZMET BAŞINA MALİYET]]*YemekTablosu[[#This Row],[ÇOCUK BAŞINA HİZMET]],\"\")","v":{"v":0.75,"d":"0.75 TL"}},{"$f":"IFERROR(YemekTablosu[[#This Row],[HİZMET BAŞINA MALİYET]]*YemekTablosu[[#This Row],[YETİŞKİN BAŞINA HİZMET]],\"\")","v":{"v":0,"d":"0.00 TL"}},"Elma ve beyaz üzüm"]
[null,"Şarap",{"v":50,"d":"50.00 TL"},0,2,{"$f":"(YemekTablosu[[#This Row],[ÇOCUK BAŞINA HİZMET]]*ToplamÇocuk)+(YemekTablosu[[#This Row],[YETİŞKİN BAŞINA HİZMET]]*ToplamYetişkin)","v":52},{"$f":"IFERROR(YemekTablosu[[#This Row],[TOPLAM MALİYET]]/YemekTablosu[[#This Row],[TOPLAM HİZMET]],\"\")","v":{"v":0.9615384615384616,"d":"0.96 TL"}},{"$f":"IFERROR(YemekTablosu[[#This Row],[HİZMET BAŞINA MALİYET]]*YemekTablosu[[#This Row],[ÇOCUK BAŞINA HİZMET]],\"\")","v":{"v":0,"d":"0.00 TL"}},{"$f":"IFERROR(YemekTablosu[[#This Row],[HİZMET BAŞINA MALİYET]]*YemekTablosu[[#This Row],[YETİŞKİN BAŞINA HİZMET]],\"\")","v":{"v":1.9230769230769231,"d":"1.92 TL"}}]
[null,"Pasta",{"v":75,"d":"75.00 TL"},1,1,{"$f":"(YemekTablosu[[#This Row],[ÇOCUK BAŞINA HİZMET]]*ToplamÇocuk)+(YemekTablosu[[#This Row],[YETİŞKİN BAŞINA HİZMET]]*ToplamYetişkin)","v":46},{"$f":"IFERROR(YemekTablosu[[#This Row],[TOPLAM MALİYET]]/YemekTablosu[[#This Row],[TOPLAM HİZMET]],\"\")","v":{"v":1.6304347826086956,"d":"1.63 TL"}},{"$f":"IFERROR(YemekTablosu[[#This Row],[HİZMET BAŞINA MALİYET]]*YemekTablosu[[#This Row],[ÇOCUK BAŞINA HİZMET]],\"\")","v":{"v":1.6304347826086956,"d":"1.63 TL"}},{"$f":"IFERROR(YemekTablosu[[#This Row],[HİZMET BAŞINA MALİYET]]*YemekTablosu[[#This Row],[YETİŞKİN BAŞINA HİZMET]],\"\")","v":{"v":1.6304347826086956,"d":"1.63 TL"}},"Yerel fırından sipariş verin"]
[null,"Dondurma",{"v":20,"d":"20.00 TL"},1,1.5,{"$f":"(YemekTablosu[[#This Row],[ÇOCUK BAŞINA HİZMET]]*ToplamÇocuk)+(YemekTablosu[[#This Row],[YETİŞKİN BAŞINA HİZMET]]*ToplamYetişkin)","v":59},{"$f":"IFERROR(YemekTablosu[[#This Row],[TOPLAM MALİYET]]/YemekTablosu[[#This Row],[TOPLAM HİZMET]],\"\")","v":{"v":0.3389830508474576,"d":"0.34 TL"}},{"$f":"IFERROR(YemekTablosu[[#This Row],[HİZMET BAŞINA MALİYET]]*YemekTablosu[[#This Row],[ÇOCUK BAŞINA HİZMET]],\"\")","v":{"v":0.3389830508474576,"d":"0.34 TL"}},{"$f":"IFERROR(YemekTablosu[[#This Row],[HİZMET BAŞINA MALİYET]]*YemekTablosu[[#This Row],[YETİŞKİN BAŞINA HİZMET]],\"\")","v":{"v":0.5084745762711864,"d":"0.51 TL"}}]
[null,"Puding kapları",{"v":15,"d":"15.00 TL"},1,0,{"$f":"(YemekTablosu[[#This Row],[ÇOCUK BAŞINA HİZMET]]*ToplamÇocuk)+(YemekTablosu[[#This Row],[YETİŞKİN BAŞINA HİZMET]]*ToplamYetişkin)","v":20},{"$f":"IFERROR(YemekTablosu[[#This Row],[TOPLAM MALİYET]]/YemekTablosu[[#This Row],[TOPLAM HİZMET]],\"\")","v":{"v":0.75,"d":"0.75 TL"}},{"$f":"IFERROR(YemekTablosu[[#This Row],[HİZMET BAŞINA MALİYET]]*YemekTablosu[[#This Row],[ÇOCUK BAŞINA HİZMET]],\"\")","v":{"v":0.75,"d":"0.75 TL"}},{"$f":"IFERROR(YemekTablosu[[#This Row],[HİZMET BAŞINA MALİYET]]*YemekTablosu[[#This Row],[YETİŞKİN BAŞINA HİZMET]],\"\")","v":{"v":0,"d":"0.00 TL"}},"Paketli kuplar satın alın: vanilya ve çikolata"]
[null,"İçi doldurulmuş mantarlar",{"v":32,"d":"32.00 TL"},1,2,{"$f":"(YemekTablosu[[#This Row],[ÇOCUK BAŞINA HİZMET]]*ToplamÇocuk)+(YemekTablosu[[#This Row],[YETİŞKİN BAŞINA HİZMET]]*ToplamYetişkin)","v":72},{"$f":"IFERROR(YemekTablosu[[#This Row],[TOPLAM MALİYET]]/YemekTablosu[[#This Row],[TOPLAM HİZMET]],\"\")","v":{"v":0.4444444444444444,"d":"0.44 TL"}},{"$f":"IFERROR(YemekTablosu[[#This Row],[HİZMET BAŞINA MALİYET]]*YemekTablosu[[#This Row],[ÇOCUK BAŞINA HİZMET]],\"\")","v":{"v":0.4444444444444444,"d":"0.44 TL"}},{"$f":"IFERROR(YemekTablosu[[#This Row],[HİZMET BAŞINA MALİYET]]*YemekTablosu[[#This Row],[YETİŞKİN BAŞINA HİZMET]],\"\")","v":{"v":0.8888888888888888,"d":"0.89 TL"}},"Krem peynir ve sosisle doldurulmuş mantarlar"]
[null,"İtalyan sandviçleri",{"v":22,"d":"22.00 TL"},0,3,{"$f":"(YemekTablosu[[#This Row],[ÇOCUK BAŞINA HİZMET]]*ToplamÇocuk)+(YemekTablosu[[#This Row],[YETİŞKİN BAŞINA HİZMET]]*ToplamYetişkin)","v":78},{"$f":"IFERROR(YemekTablosu[[#This Row],[TOPLAM MALİYET]]/YemekTablosu[[#This Row],[TOPLAM HİZMET]],\"\")","v":{"v":0.28205128205128205,"d":"0.28 TL"}},{"$f":"IFERROR(YemekTablosu[[#This Row],[HİZMET BAŞINA MALİYET]]*YemekTablosu[[#This Row],[ÇOCUK BAŞINA HİZMET]],\"\")","v":{"v":0,"d":"0.00 TL"}},{"$f":"IFERROR(YemekTablosu[[#This Row],[HİZMET BAŞINA MALİYET]]*YemekTablosu[[#This Row],[YETİŞKİN BAŞINA HİZMET]],\"\")","v":{"v":0.8461538461538461,"d":"0.85 TL"}},"Domates ve fesleğen "]
[null,"Füme somon",{"v":50,"d":"50.00 TL"},1,2,{"$f":"(YemekTablosu[[#This Row],[ÇOCUK BAŞINA HİZMET]]*ToplamÇocuk)+(YemekTablosu[[#This Row],[YETİŞKİN BAŞINA HİZMET]]*ToplamYetişkin)","v":72},{"$f":"IFERROR(YemekTablosu[[#This Row],[TOPLAM MALİYET]]/YemekTablosu[[#This Row],[TOPLAM HİZMET]],\"\")","v":{"v":0.6944444444444444,"d":"0.69 TL"}},{"$f":"IFERROR(YemekTablosu[[#This Row],[HİZMET BAŞINA MALİYET]]*YemekTablosu[[#This Row],[ÇOCUK BAŞINA HİZMET]],\"\")","v":{"v":0.6944444444444444,"d":"0.69 TL"}},{"$f":"IFERROR(YemekTablosu[[#This Row],[HİZMET BAŞINA MALİYET]]*YemekTablosu[[#This Row],[YETİŞKİN BAŞINA HİZMET]],\"\")","v":{"v":1.3888888888888888,"d":"1.39 TL"}}]
[null,"Minik ekmekler",{"v":20,"d":"20.00 TL"},1,2,{"$f":"(YemekTablosu[[#This Row],[ÇOCUK BAŞINA HİZMET]]*ToplamÇocuk)+(YemekTablosu[[#This Row],[YETİŞKİN BAŞINA HİZMET]]*ToplamYetişkin)","v":72},{"$f":"IFERROR(YemekTablosu[[#This Row],[TOPLAM MALİYET]]/YemekTablosu[[#This Row],[TOPLAM HİZMET]],\"\")","v":{"v":0.2777777777777778,"d":"0.28 TL"}},{"$f":"IFERROR(YemekTablosu[[#This Row],[HİZMET BAŞINA MALİYET]]*YemekTablosu[[#This Row],[ÇOCUK BAŞINA HİZMET]],\"\")","v":{"v":0.2777777777777778,"d":"0.28 TL"}},{"$f":"IFERROR(YemekTablosu[[#This Row],[HİZMET BAŞINA MALİYET]]*YemekTablosu[[#This Row],[YETİŞKİN BAŞINA HİZMET]],\"\")","v":{"v":0.5555555555555556,"d":"0.56 TL"}},"4 paket, çeşitli"]
[null,"Krem peynir",{"v":10,"d":"10.00 TL"},1,2,{"$f":"(YemekTablosu[[#This Row],[ÇOCUK BAŞINA HİZMET]]*ToplamÇocuk)+(YemekTablosu[[#This Row],[YETİŞKİN BAŞINA HİZMET]]*ToplamYetişkin)","v":72},{"$f":"IFERROR(YemekTablosu[[#This Row],[TOPLAM MALİYET]]/YemekTablosu[[#This Row],[TOPLAM HİZMET]],\"\")","v":{"v":0.1388888888888889,"d":"0.14 TL"}},{"$f":"IFERROR(YemekTablosu[[#This Row],[HİZMET BAŞINA MALİYET]]*YemekTablosu[[#This Row],[ÇOCUK BAŞINA HİZMET]],\"\")","v":{"v":0.1388888888888889,"d":"0.14 TL"}},{"$f":"IFERROR(YemekTablosu[[#This Row],[HİZMET BAŞINA MALİYET]]*YemekTablosu[[#This Row],[YETİŞKİN BAŞINA HİZMET]],\"\")","v":{"v":0.2777777777777778,"d":"0.28 TL"}},"2 büyük tüp"]
[null,"Sütlüce otu",{"v":12,"d":"12.00 TL"},1,2,{"$f":"(YemekTablosu[[#This Row],[ÇOCUK BAŞINA HİZMET]]*ToplamÇocuk)+(YemekTablosu[[#This Row],[YETİŞKİN BAŞINA HİZMET]]*ToplamYetişkin)","v":72},{"$f":"IFERROR(YemekTablosu[[#This Row],[TOPLAM MALİYET]]/YemekTablosu[[#This Row],[TOPLAM HİZMET]],\"\")","v":{"v":0.16666666666666666,"d":"0.17 TL"}},{"$f":"IFERROR(YemekTablosu[[#This Row],[HİZMET BAŞINA MALİYET]]*YemekTablosu[[#This Row],[ÇOCUK BAŞINA HİZMET]],\"\")","v":{"v":0.16666666666666666,"d":"0.17 TL"}},{"$f":"IFERROR(YemekTablosu[[#This Row],[HİZMET BAŞINA MALİYET]]*YemekTablosu[[#This Row],[YETİŞKİN BAŞINA HİZMET]],\"\")","v":{"v":0.3333333333333333,"d":"0.33 TL"}},"3 kavanoz"]
[null,"Tavuk kanatları",{"v":45,"d":"45.00 TL"},2,4,{"$f":"(YemekTablosu[[#This Row],[ÇOCUK BAŞINA HİZMET]]*ToplamÇocuk)+(YemekTablosu[[#This Row],[YETİŞKİN BAŞINA HİZMET]]*ToplamYetişkin)","v":144},{"$f":"IFERROR(YemekTablosu[[#This Row],[TOPLAM MALİYET]]/YemekTablosu[[#This Row],[TOPLAM HİZMET]],\"\")","v":{"v":0.3125,"d":"0.31 TL"}},{"$f":"IFERROR(YemekTablosu[[#This Row],[HİZMET BAŞINA MALİYET]]*YemekTablosu[[#This Row],[ÇOCUK BAŞINA HİZMET]],\"\")","v":{"v":0.625,"d":"0.63 TL"}},{"$f":"IFERROR(YemekTablosu[[#This Row],[HİZMET BAŞINA MALİYET]]*YemekTablosu[[#This Row],[YETİŞKİN BAŞINA HİZMET]],\"\")","v":{"v":1.25,"d":"1.25 TL"}},"Yerel kanat mağazasından satın alın"]
[null,"Humus",{"v":10,"d":"10.00 TL"},4,6,{"$f":"(YemekTablosu[[#This Row],[ÇOCUK BAŞINA HİZMET]]*ToplamÇocuk)+(YemekTablosu[[#This Row],[YETİŞKİN BAŞINA HİZMET]]*ToplamYetişkin)","v":236},{"$f":"IFERROR(YemekTablosu[[#This Row],[TOPLAM MALİYET]]/YemekTablosu[[#This Row],[TOPLAM HİZMET]],\"\")","v":{"v":0.0423728813559322,"d":"0.04 TL"}},{"$f":"IFERROR(YemekTablosu[[#This Row],[HİZMET BAŞINA MALİYET]]*YemekTablosu[[#This Row],[ÇOCUK BAŞINA HİZMET]],\"\")","v":{"v":0.1694915254237288,"d":"0.17 TL"}},{"$f":"IFERROR(YemekTablosu[[#This Row],[HİZMET BAŞINA MALİYET]]*YemekTablosu[[#This Row],[YETİŞKİN BAŞINA HİZMET]],\"\")","v":{"v":0.2542372881355932,"d":"0.25 TL"}},"Önceki akşam yapılacak"]
[null,"Parmesan çubukları",{"v":14,"d":"14.00 TL"},4,6,{"$f":"(YemekTablosu[[#This Row],[ÇOCUK BAŞINA HİZMET]]*ToplamÇocuk)+(YemekTablosu[[#This Row],[YETİŞKİN BAŞINA HİZMET]]*ToplamYetişkin)","v":236},{"$f":"IFERROR(YemekTablosu[[#This Row],[TOPLAM MALİYET]]/YemekTablosu[[#This Row],[TOPLAM HİZMET]],\"\")","v":{"v":0.059322033898305086,"d":"0.06 TL"}},{"$f":"IFERROR(YemekTablosu[[#This Row],[HİZMET BAŞINA MALİYET]]*YemekTablosu[[#This Row],[ÇOCUK BAŞINA HİZMET]],\"\")","v":{"v":0.23728813559322035,"d":"0.24 TL"}},{"$f":"IFERROR(YemekTablosu[[#This Row],[HİZMET BAŞINA MALİYET]]*YemekTablosu[[#This Row],[YETİŞKİN BAŞINA HİZMET]],\"\")","v":{"v":0.3559322033898305,"d":"0.36 TL"}},"Önceki akşam yapılacak"]
[null,"Çeşitli sebzeler",{"v":30,"d":"30.00 TL"},4,10,{"$f":"(YemekTablosu[[#This Row],[ÇOCUK BAŞINA HİZMET]]*ToplamÇocuk)+(YemekTablosu[[#This Row],[YETİŞKİN BAŞINA HİZMET]]*ToplamYetişkin)","v":340},{"$f":"IFERROR(YemekTablosu[[#This Row],[TOPLAM MALİYET]]/YemekTablosu[[#This Row],[TOPLAM HİZMET]],\"\")","v":{"v":0.08823529411764706,"d":"0.09 TL"}},{"$f":"IFERROR(YemekTablosu[[#This Row],[HİZMET BAŞINA MALİYET]]*YemekTablosu[[#This Row],[ÇOCUK BAŞINA HİZMET]],\"\")","v":{"v":0.35294117647058826,"d":"0.35 TL"}},{"$f":"IFERROR(YemekTablosu[[#This Row],[HİZMET BAŞINA MALİYET]]*YemekTablosu[[#This Row],[YETİŞKİN BAŞINA HİZMET]],\"\")","v":{"v":0.8823529411764707,"d":"0.88 TL"}},"Havuç çubukları, kereviz, brokoli, karnabahar, kırmızı ve yeşil biber"]
[null,"Peynir topları",{"v":15,"d":"15.00 TL"},5,10,{"$f":"(YemekTablosu[[#This Row],[ÇOCUK BAŞINA HİZMET]]*ToplamÇocuk)+(YemekTablosu[[#This Row],[YETİŞKİN BAŞINA HİZMET]]*ToplamYetişkin)","v":360},{"$f":"IFERROR(YemekTablosu[[#This Row],[TOPLAM MALİYET]]/YemekTablosu[[#This Row],[TOPLAM HİZMET]],\"\")","v":{"v":0.041666666666666664,"d":"0.04 TL"}},{"$f":"IFERROR(YemekTablosu[[#This Row],[HİZMET BAŞINA MALİYET]]*YemekTablosu[[#This Row],[ÇOCUK BAŞINA HİZMET]],\"\")","v":{"v":0.20833333333333331,"d":"0.21 TL"}},{"$f":"IFERROR(YemekTablosu[[#This Row],[HİZMET BAŞINA MALİYET]]*YemekTablosu[[#This Row],[YETİŞKİN BAŞINA HİZMET]],\"\")","v":{"v":0.41666666666666663,"d":"0.42 TL"}},"Çeşitli, krem peynir, cevizli peynir"]
[null,"Krakerler",{"v":25,"d":"25.00 TL"},5,10,{"$f":"(YemekTablosu[[#This Row],[ÇOCUK BAŞINA HİZMET]]*ToplamÇocuk)+(YemekTablosu[[#This Row],[YETİŞKİN BAŞINA HİZMET]]*ToplamYetişkin)","v":360},{"$f":"IFERROR(YemekTablosu[[#This Row],[TOPLAM MALİYET]]/YemekTablosu[[#This Row],[TOPLAM HİZMET]],\"\")","v":{"v":0.06944444444444445,"d":"0.07 TL"}},{"$f":"IFERROR(YemekTablosu[[#This Row],[HİZMET BAŞINA MALİYET]]*YemekTablosu[[#This Row],[ÇOCUK BAŞINA HİZMET]],\"\")","v":{"v":0.3472222222222222,"d":"0.35 TL"}},{"$f":"IFERROR(YemekTablosu[[#This Row],[HİZMET BAŞINA MALİYET]]*YemekTablosu[[#This Row],[YETİŞKİN BAŞINA HİZMET]],\"\")","v":{"v":0.6944444444444444,"d":"0.69 TL"}},"Çeşitli"]
[null,"Toplam",{"$f":"SUBTOTAL(109,YemekTablosu[TOPLAM MALİYET])","v":{"v":475,"d":"475.00 TL"}},{"$f":"SUBTOTAL(109,YemekTablosu[ÇOCUK BAŞINA HİZMET])","v":34.5},{"$f":"SUBTOTAL(109,YemekTablosu[YETİŞKİN BAŞINA HİZMET])","v":65.5},{"$f":"SUBTOTAL(109,YemekTablosu[TOPLAM HİZMET])","v":2393},{"$f":"SUBTOTAL(109,YemekTablosu[HİZMET BAŞINA MALİYET])","v":{"v":6.915706603622084,"d":"6.92 TL"}},{"$f":"SUBTOTAL(109,YemekTablosu[ÇOCUK BAŞINA MALİYET])","v":{"v":7.252884190656953,"d":"7.25 TL"}},{"$f":"SUBTOTAL(109,YemekTablosu[YETİŞKİN BAŞINA MALİYET])","v":{"v":12.690089084110037,"d":"12.69 TL"}}]

{"sheet":"Diğer Anahatlar","index":3,"n_rows":30,"n_cols":5,"rows_kept":30,"merged":[[14,1,14,4],[22,1,22,4]]}
[]
[]
[null,"Diğer Anahatlar"]
[]
[]
[null,"Araç Gereç ve Malzemeler","Maliyet","Satın Alındı","Notlar"]
[null,"Oda/salon kirası",{"v":250,"d":"250.00 TL"},"Evet"]
[null,"Kumaşlar",{"v":30,"d":"30.00 TL"},"Evet","Kira"]
[null,"Masa ve sandalyeler",{"v":0,"d":"0.00 TL"},null,"Salon kirasına dahil"]
[null,"İçecek peçeteleri",{"v":25,"d":"25.00 TL"}]
[null,"Yemek peçeteleri",{"v":20,"d":"20.00 TL"},null,"Kira"]
[null,"Masa servisi",{"v":50,"d":"50.00 TL"},null,"Kira"]
[null,"Cam eşyalar",{"v":25,"d":"25.00 TL"},null,"Kira"]
[null,"Toplam",{"$f":"SUBTOTAL(109,Tablo1Bütçe[Maliyet])","v":{"v":400,"d":"400.00 TL"}}]
[]
[]
[null,"Süslemeler","Maliyet","Satın Alındı","Notlar"]
[null,"Balonlar",{"v":25,"d":"25.00 TL"}]
[null,"Helyum gazı",{"v":50,"d":"50.00 TL"},null,"Kira"]
[null,"Masa süsleri",{"v":100,"d":"100.00 TL"},"Evet","toplam 10"]
[null,"Cam vazolar",{"v":0,"d":"0.00 TL"},null,"Çiğdem'den borç"]
[null,"Toplam",{"$f":"SUBTOTAL(109,Tablo2Bütçe[Maliyet])","v":{"v":175,"d":"175.00 TL"}}]
[]
[]
[null,"Diğer","Maliyet","Satın Alındı","Notlar"]
[null,"Davetiyeler",{"v":50,"d":"50.00 TL"},"Evet"]
[null,"Posta",{"v":60,"d":"60.00 TL"},"Evet"]
[null,"Fotoğrafçı",{"v":125,"d":"125.00 TL"},null,"2 saat (14:00-16:00)"]
[null,"Parti hediyeleri",{"v":50,"d":"50.00 TL"}]
[null,"Toplam",{"$f":"SUBTOTAL(109,Tablo3Bütçe[Maliyet])","v":{"v":285,"d":"285.00 TL"}}]

{"sheet":"Oturma Düzeni Kılavuzu","index":4,"n_rows":43,"n_cols":34,"rows_kept":43,"merged":[[35,0,35,17],[35,19,35,33]]}
["Oturma Düzeni"]
{"$rows_empty":33}
[{"$nulls":33},"*1 kare= yaklaşık 1 metre kare"]
["Notlar",{"$nulls":18},{"$f":"\" Onaylanan toplam konuk sayısı: \"&OnaylananKonuklar","v":" Onaylanan toplam konuk sayısı: 46"}]
[{"$nulls":19},"Aşağıdaki masa kurulumlarından herhangi birini kullanabilirsiniz:"]
[{"$nulls":20},{"$f":"ROUNDUP(OnaylananKonuklar/6,0)&\"140 cm'lik yuvarlak masalar (6 kişilik)\"","v":"8140 cm'lik yuvarlak masalar (6 kişilik)"}]
[{"$nulls":20},{"$f":"ROUNDUP(OnaylananKonuklar/8,0) &\" 160 cm'lik yuvarlak masalar (8 kişilik)\"","v":"6 160 cm'lik yuvarlak masalar (8 kişilik)"}]
[{"$nulls":20},{"$f":"ROUNDUP(OnaylananKonuklar/10,0)&\" 180 cm'lik yuvarlak masalar (10 kişilik)\"","v":"5 180 cm'lik yuvarlak masalar (10 kişilik)"}]
[{"$nulls":20},{"$f":"ROUNDUP(OnaylananKonuklar/6,0)& \" 80 x 180 cm'lik kare masalar (6 kişilik)\"","v":"8 80 x 180 cm'lik kare masalar (6 kişilik)"}]
[{"$nulls":20},{"$f":"ROUNDUP(OnaylananKonuklar/8,0)&\" 80 x 250 cm'lik kare masalar (8 kişilik)\"","v":"6 80 x 250 cm'lik kare masalar (8 kişilik)"}]
[{"$nulls":19},"(Masalar arasında tercih edilen mesafe: 80 santimetre)"]